fUSD/lending_fUSD_20240406
["ID","MTS","AMOUNT","RATE_DAILY","PERIOD"]
[321692297,1712391043286,-687.7,0.00023661,2]
[321692298,1712391043295,-6.93639398,0.00023661,2]
[321692299,1712391043323,-493.06360602,0.00023661,2]
[321692300,1712391043333,-500.0,0.00023661,2]
[321692301,1712391043343,-500.0,0.00023661,2]
[321692302,1712391043352,-513.63322311,0.00023661,2]
[321692303,1712391043361,-500.0,0.00023661,2]
[321692304,1712391043370,-88.88358702,0.00023661,2]
[321692305,1712391043382,-411.11641298,0.00023661,2]
[321692306,1712391043391,-640.13,0.00023661,2]
[321692307,1712391043400,-529.13446857,0.00023661,2]
[321692308,1712391043410,-500.0,0.00023661,2]
[321692309,1712391043419,-500.0,0.00023661,2]
[321692310,1712391043428,-500.0,0.00023661,2]
[321692311,1712391043438,-300.0,0.00023661,2]
[321692312,1712391043447,-500.0,0.00023661,2]
[321692313,1712391043455,-500.0,0.00023661,2]
[321692314,1712391043464,-500.0,0.00023661,2]
[321692315,1712391043473,-500.0,0.00023661,2]
[321692316,1712391043482,-289.87644063,0.00023661,2]
[321692317,1712391043491,-360.46333226,0.00023661,2]
[321692318,1712391043501,-500.0,0.00023661,2]
[321692319,1712391043511,-500.0,0.00023661,2]
[321692320,1712391043520,-500.0,0.00023661,2]
[321692321,1712391043529,-500.0,0.00023661,2]
[321692322,1712391043538,-500.0,0.00023661,2]
[321692323,1712391043547,-500.0,0.00023661,2]
[321692324,1712391043556,-590.99,0.00023661,2]
[321692325,1712391043566,-500.0,0.00023661,2]
[321692326,1712391043575,-500.0,0.00023661,2]
[321692327,1712391043586,-506.75451131,0.00023661,2]
[321692328,1712391043595,-500.0,0.00023661,2]
[321692329,1712391043604,-500.0,0.00023661,2]
[321692331,1712391043613,-500.0,0.00023661,2]
[321692332,1712391043622,-500.0,0.00023661,2]
[321692334,1712391043630,-500.0,0.00023661,2]
[321692335,1712391043640,-500.0,0.00023661,2]
[321692336,1712391043649,-521.64580422,0.00023661,2]
[321692337,1712391043658,-500.0,0.00023661,2]
[321692338,1712391043667,-1029.64,0.00023661,2]
[321692339,1712391043676,-500.0,0.00023661,2]
[321692340,1712391043689,-500.0,0.00023661,2]
[321692341,1712391043699,-339.25,0.00023661,2]
[321692343,1712391043708,-500.0,0.00023661,2]
[321692344,1712391043717,-512.91241241,0.00023661,2]
[321692345,1712391043726,-500.0,0.00023661,2]
[321692346,1712391043735,-500.65,0.00023661,2]
[321692347,1712391043744,-500.0,0.00023661,2]
[321692348,1712391043753,-500.0,0.00023661,2]
[321692349,1712391043763,-500.0,0.00023661,2]
[321692350,1712391043772,-500.0,0.00023661,2]
[321692352,1712391043781,-500.0,0.00023661,2]
[321692354,1712391043790,-500.0,0.00023661,2]
[321692356,1712391043800,-500.0,0.00023661,2]
[321692357,1712391043809,-185.12,0.00023661,2]
[321692358,1712391043818,-573.93,0.00023661,2]
[321692359,1712391043828,-488.47511346,0.00023661,2]
[321692360,1712391043840,-719.16274295,0.00023662,2]
[321692361,1712391043853,-7576.68590718,0.00023662,2]
[321692362,1712391043865,-11978.42926413,0.00023662,2]
[321692363,1712391043876,-2972.79772554,0.00023662,2]
[321692364,1712391043888,-399.7805044,0.00023662,2]
[321692365,1712391043905,-7931.65331211,0.00023662,2]
[321692366,1712391043917,-2489.62664101,0.00023662,2]
[321692367,1712391043928,-2155.58622028,0.00023662,2]
[321692368,1712391043940,-2532.9872,0.00023662,2]
[321692370,1712391047696,-10172.94107275,0.00023662,2]
[321692371,1712391047757,-24023.31903772,0.00023662,2]
[321692372,1712391047808,-440.74979347,0.00023662,2]
[321692373,1712391047821,-274.07556915,0.00023662,2]
[321692374,1712391047863,-971.96,0.00023662,2]
[321692375,1712391047878,-1273.80459234,0.00023662,2]
[321692376,1712391047890,-4354.03401697,0.00023662,2]
[321692377,1712391047900,-1000.0,0.00023662,2]
[321692378,1712391047909,-36588.31580478,0.00023662,2]
[321692448,1712391391208,-600.0,0.0002128,2]
[321692450,1712391601425,319.33,0.00020867,2]
[321692461,1712392065479,291.74872164,0.00020815,2]
[321692462,1712392065501,43.42127836,0.00020815,2]
[321692470,1712392232318,-640.34666034,0.00022538,2]
[321692471,1712392232328,-263.20429561,0.00022538,2]
[321692472,1712392232479,-934.59787856,0.00022538,2]
[321692473,1712392232489,-491.5998,0.00022539,2]
[321692474,1712392232498,-260.42,0.0002264,2]
[321692475,1712392232508,-163.17,0.00022725,2]
[321692476,1712392232517,-165.73,0.00022756,2]
[321692477,1712392232526,-1000.0,0.00022782,2]
[321692478,1712392232536,-1500.0,0.00022904,2]
[321692479,1712392232545,-7254.0,0.00022941,2]
[321692480,1712392232554,-508.69020792,0.00023,2]
[321692481,1712392232563,-335.17,0.00023078,2]
[321692482,1712392232572,-1500.0,0.00023391,2]
[321692483,1712392232582,-1166.08637,0.0002343,2]
[321692484,1712392232591,-518.9679,0.00023462,2]
[321692485,1712392232601,-1443.9569,0.00023462,2]
[321692486,1712392232610,-5370.5839,0.00023462,2]
[321692487,1712392232619,-612.97566725,0.00023462,2]
[321692488,1712392232631,-926.19389379,0.00023462,2]
[321692489,1712392232641,-834.15,0.000235,2]
[321692490,1712392232650,-155.35,0.00023552,2]
[321692491,1712392232659,-500.0,0.00023561,2]
[321692492,1712392232670,-550.01,0.00023561,2]
[321692493,1712392232679,-1193.81,0.00023561,2]
[321692494,1712392232688,-500.0,0.00023561,2]
[321692495,1712392232697,-500.0,0.00023561,2]
[321692496,1712392232707,-500.0,0.00023561,2]
[321692497,1712392232717,-273.61467229,0.00023561,2]
[321692498,1712392232728,-643.56030626,0.00023561,2]
[321692499,1712392232738,-500.0,0.00023561,2]
[321692500,1712392232750,-500.0,0.00023561,2]
[321692501,1712392232761,-500.0,0.00023561,2]
[321692502,1712392232772,-500.0,0.00023561,2]
[321692503,1712392232781,-613.46,0.00023561,2]
[321692504,1712392232791,-632.52110876,0.00023561,2]
[321692505,1712392232801,-500.0,0.00023561,2]
[321692506,1712392232810,-500.0,0.00023561,2]
[321692507,1712392232820,-500.0,0.00023561,2]
[321692508,1712392232831,-500.0,0.00023561,2]
[321692509,1712392232842,-500.0,0.00023561,2]
[321692510,1712392232852,-500.0,0.00023561,2]
[321692511,1712392232862,-500.0,0.00023561,2]
[321692512,1712392232872,-566.37,0.00023561,2]
[321692513,1712392232881,-500.0,0.00023561,2]
[321692514,1712392232890,-500.0,0.00023561,2]
[321692515,1712392232900,-500.0,0.00023561,2]
[321692516,1712392232914,-500.0,0.00023561,2]
[321692517,1712392232924,-986.74,0.00023561,2]
[321692518,1712392232933,-500.0,0.00023561,2]
[321692519,1712392232944,-500.0,0.00023561,2]
[321692520,1712392232954,-500.0,0.00023561,2]
[321692521,1712392232964,-500.0,0.00023561,2]
[321692522,1712392232974,-500.0,0.00023561,2]
[321692523,1712392232985,-500.0,0.00023561,2]
[321692524,1712392232995,-500.0,0.00023561,2]
[321692525,1712392233005,-500.0,0.00023561,2]
[321692526,1712392233016,-500.0,0.00023561,2]
[321692527,1712392233026,-203.15,0.00023561,2]
[321692528,1712392233036,-1000.0,0.00023562,2]
[321692529,1712392233046,-500.0,0.00023562,2]
[321692530,1712392233056,-58942.82755821,0.00023562,2]
[321692531,1712392233070,-3494.75123709,0.00023562,2]
[321692532,1712392233095,-491.59977568,0.00023562,2]
[321692533,1712392233108,-1545.49398965,0.00023562,2]
[321692534,1712392233122,-2088.72622683,0.00023562,2]
[321692535,1712392233135,-896.34233643,0.00023562,2]
[321692536,1712392238247,-320.35,0.00023561,2]
[321692537,1712392238258,-456.18,0.00023561,2]
[321692538,1712392238268,-727.96745656,0.00023562,2]
[321692553,1712392243273,-500.0,0.00023561,2]
[321692554,1712392243283,-500.0,0.00023561,2]
[321692555,1712392243292,-417.01419146,0.00023562,2]
[321692556,1712392243440,-341.64788829,0.00023562,2]
[321692557,1712392243456,-706.24998,0.00023562,2]
[321692558,1712392243604,-1114.39452516,0.00023562,2]
[321692559,1712392243662,-2403.16473781,0.00023562,2]
[321692671,1712392396086,-640.34666034,0.00023232,2]
[321692672,1712392396117,-1000.0,0.00023233,2]
[321692673,1712392396145,-500.0,0.00023462,2]
[321692674,1712392396169,-263.4107,0.00023462,2]
[321692675,1712392396193,-3646.16535941,0.00023462,2]
[321692676,1712392396220,-500.0,0.00023561,2]
[321692677,1712392396245,-623.86,0.00023561,2]
[321692678,1712392396270,-527.1,0.00023561,2]
[321692679,1712392396297,-500.0,0.00023561,2]
[321692680,1712392396324,-500.0,0.00023561,2]
[321692681,1712392396347,-309.77,0.00023561,2]
[321692682,1712392396371,-625.75,0.00023561,2]
[321692683,1712392396393,-203.59,0.00023561,2]
[321692684,1712392396418,-1144.07,0.00023561,2]
[321692685,1712392396442,-500.0,0.00023561,2]
[321692686,1712392396467,-446.72,0.00023561,2]
[321692687,1712392396493,-283.82,0.00023561,2]
[321692688,1712392396518,-288.31,0.00023561,2]
[321692689,1712392396541,-297.7,0.00023561,2]
[321692690,1712392396565,-447.94534638,0.00023561,2]
[321692691,1712392396591,-500.0,0.00023561,2]
[321692692,1712392396618,-500.0,0.00023561,2]
[321692693,1712392396643,-323.75,0.00023561,2]
[321692694,1712392396667,-281.85,0.00023561,2]
[321692695,1712392396691,-500.0,0.00023561,2]
[321692696,1712392396717,-500.0,0.00023561,2]
[321692697,1712392396744,-332.69,0.00023561,2]
[321692698,1712392396770,-659.04,0.00023561,2]
[321692699,1712392396794,-500.0,0.00023561,2]
[321692700,1712392396817,-500.0,0.00023561,2]
[321692701,1712392396842,-500.0,0.00023561,2]
[321692702,1712392396865,-500.0,0.00023561,2]
[321692703,1712392396888,-500.0,0.00023561,2]
[321692704,1712392396912,-598.51,0.00023561,2]
[321692705,1712392396936,-500.0,0.00023561,2]
[321692706,1712392396960,-500.0,0.00023561,2]
[321692707,1712392396984,-500.0,0.00023561,2]
[321692708,1712392397249,-150.0,0.00023561,2]
[321692709,1712392397274,-196.74,0.00023561,2]
[321692710,1712392397297,-157.89,0.00023561,2]
[321692711,1712392397321,-500.0,0.00023561,2]
[321692712,1712392397345,-477.46,0.00023561,2]
[321692713,1712392397368,-500.0,0.00023561,2]
[321692714,1712392397391,-181.25,0.00023561,2]
[321692715,1712392397416,-500.0,0.00023561,2]
[321692716,1712392397439,-350.59,0.00023561,2]
[321692717,1712392397463,-500.0,0.00023561,2]
[321692718,1712392397488,-500.0,0.00023561,2]
[321692719,1712392397510,-500.0,0.00023561,2]
[321692720,1712392397533,-318.35328507,0.00023561,2]
[321692721,1712392397556,-500.0,0.00023561,2]
[321692722,1712392397581,-500.0,0.00023561,2]
[321692723,1712392397605,-372.77,0.00023561,2]
[321692724,1712392397630,-500.0,0.00023561,2]
[321692725,1712392397655,-171829.82009683,0.00023562,2]
[321692726,1712392397679,-39929.6927,0.00023562,2]
[321692727,1712392397702,-155600.03585197,0.000236,2]
[321692729,1712392414229,2673.2611425,0.00017672,2]
[321692730,1712392429160,363.37286518,0.0001967,2]
[321692731,1712392448872,364.86024513,0.0001967,2]
[321692732,1712392449139,155.09018466,0.0001967,2]
[321692733,1712392451144,296.099225,0.0001967,2]
[321692734,1712392456520,864.22863869,0.0001967,2]
[321692735,1712392464867,367.33162136,0.0001967,2]
[321692736,1712392467119,297.79492667,0.0001967,2]
[321692737,1712392472503,301.89733518,0.0001967,2]
[321692738,1712392492707,171.59,0.00018238,2]
[321692739,1712392556280,178.96,0.00017912,2]
[321692744,1712392757135,201.56474768,0.000245,120]
[321692747,1712392946412,301.65,0.000203,2]
[321692749,1712393113596,1500.0,0.00020213,2]
[321692751,1712393390607,1329.0,0.00029998,120]
[321692754,1712393431510,-598.94904164,0.00021405,2]
[321692755,1712393431520,-1194.02178828,0.00021406,2]
[321692756,1712393431564,-305.97821172,0.00021406,2]
[321692757,1712393431574,-161.78536777,0.000219,2]
[321692758,1712393431585,-182.40549404,0.00022,2]
[321692759,1712393431621,-457.9411663,0.00022,2]
[321692760,1712393431633,-150.0,0.00022192,2]
[321692761,1712393431643,-401.09,0.00022197,2]
[321692762,1712393431656,-200.0,0.00022248,2]
[321692763,1712393431668,-117.04016373,0.0002227,2]
[321692764,1712393431780,-518.40021227,0.0002227,2]
[321692765,1712393431794,-864.559624,0.0002227,2]
[321692766,1712393431804,-952.74784911,0.00022384,2]
[321692767,1712393431814,-499.99,0.00022384,2]
[321692768,1712393431825,-301.65,0.00022564,2]
[321692769,1712393431835,-150.0,0.00023275,2]
[321692770,1712393431846,-1000.0,0.000233,2]
[321692771,1712393431857,-150.0,0.00023318,2]
[321692772,1712393431867,-150.0,0.0002333,2]
[321692773,1712393431876,-971.73864,0.0002336,2]
[321692774,1712393431887,-409.80163034,0.000234,2]
[321692818,1712393437518,-590.19836966,0.000234,2]
[321692819,1712393437528,-150.0,0.00023453,2]
[321692820,1712393437537,-1197.80217417,0.0002346,2]
[321692821,1712393437548,-150.0,0.0002346,2]
[321692822,1712393437557,-6544.75772237,0.00023462,2]
[321692823,1712393437680,-5366.17317542,0.00023462,2]
[321692824,1712393437789,-991.28208448,0.00023462,2]
[321692828,1712393439669,-8643.67207993,0.00023462,2]
[321692829,1712393439726,-2204.54010507,0.00023462,2]
[321692830,1712393439741,-1569.05154277,0.00023462,2]
[321692831,1712393439754,-1186.36711762,0.00023462,2]
[321692832,1712393439767,-354.74999233,0.00023462,2]
[321692833,1712393439780,-13069.09888001,0.00023462,2]
[321692834,1712393439790,-319.2317,0.00023462,2]
[321692835,1712393439800,-150.0,0.00023475,2]
[321692836,1712393439809,-1000.0,0.00023478,2]
[321692837,1712393439820,-3368.60398995,0.00023495,2]
[321692838,1712393439829,-536.35370887,0.00023495,2]
[321692839,1712393439838,-833.57450442,0.000235,2]
[321692840,1712393439847,-1000.0,0.000235,2]
[321692841,1712393439856,-500.0,0.00023561,2]
[321692842,1712393439866,-500.0,0.00023561,2]
[321692843,1712393439875,-500.0,0.00023561,2]
[321692844,1712393439885,-500.0,0.00023561,2]
[321692845,1712393439894,-468.80251702,0.00023561,2]
[321692846,1712393439902,-500.0,0.00023561,2]
[321692847,1712393439911,-500.0,0.00023561,2]
[321692848,1712393439921,-500.0,0.00023561,2]
[321692849,1712393439930,-500.0,0.00023561,2]
[321692850,1712393439939,-500.0,0.00023561,2]
[321692851,1712393439948,-500.0,0.00023561,2]
[321692852,1712393439961,-500.0,0.00023561,2]
[321692853,1712393439970,-500.0,0.00023561,2]
[321692854,1712393439979,-500.0,0.00023561,2]
[321692855,1712393439989,-500.0,0.00023561,2]
[321692856,1712393439999,-266.52919166,0.00023561,2]
[321692857,1712393440008,-500.0,0.00023561,2]
[321692858,1712393440018,-500.0,0.00023561,2]
[321692859,1712393440027,-500.0,0.00023561,2]
[321692860,1712393440036,-500.0,0.00023561,2]
[321692861,1712393440045,-500.0,0.00023561,2]
[321692862,1712393440054,-500.0,0.00023561,2]
[321692863,1712393440064,-500.0,0.00023561,2]
[321692864,1712393440074,-500.0,0.00023561,2]
[321692865,1712393440083,-500.0,0.00023561,2]
[321692866,1712393440092,-500.0,0.00023561,2]
[321692867,1712393440101,-562.36243166,0.00023561,2]
[321692868,1712393440111,-601.24208059,0.00023561,2]
[321692869,1712393440120,-500.0,0.00023561,2]
[321692870,1712393440130,-500.0,0.00023561,2]
[321692871,1712393440139,-512.87445801,0.00023561,2]
[321692872,1712393440148,-500.0,0.00023561,2]
[321692873,1712393440158,-529.96544745,0.00023561,2]
[321692874,1712393440167,-506.12311766,0.00023561,2]
[321692875,1712393440177,-500.0,0.00023561,2]
[321692876,1712393440186,-500.0,0.00023561,2]
[321692877,1712393440195,-496.17422201,0.00023561,2]
[321692878,1712393440204,-500.0,0.00023561,2]
[321692879,1712393440215,-500.0,0.00023561,2]
[321692880,1712393440225,-500.0,0.00023561,2]
[321692881,1712393440237,-500.0,0.00023561,2]
[321692882,1712393440247,-500.0,0.00023561,2]
[321692883,1712393440256,-500.0,0.00023561,2]
[321692884,1712393440265,-506.46419743,0.00023561,2]
[321692885,1712393440275,-500.0,0.00023561,2]
[321692886,1712393440285,-500.0,0.00023561,2]
[321692887,1712393440294,-500.0,0.00023561,2]
[321692888,1712393440303,-500.0,0.00023561,2]
[321692889,1712393440313,-500.0,0.00023561,2]
[321692890,1712393440322,-500.0,0.00023561,2]
[321692891,1712393440332,-500.0,0.00023561,2]
[321692892,1712393440341,-500.0,0.00023561,2]
[321692893,1712393440350,-269.56270118,0.00023562,2]
[321692894,1712393440360,-1904.50942371,0.00023562,2]
[321692895,1712393440369,-306.88594765,0.00023563,2]
[321692896,1712393440379,-150.0,0.00023564,2]
[321692897,1712393440388,-500.0,0.00023577,2]
[321692898,1712393440398,-329.61,0.00023577,2]
[321692899,1712393440407,-269.17,0.00023577,2]
[321692900,1712393440417,-500.0,0.00023577,2]
[321692901,1712393440426,-500.0,0.00023577,2]
[321692902,1712393440436,-408.8,0.00023577,2]
[321692903,1712393440445,-445.96,0.00023577,2]
[321692904,1712393440455,-444.23,0.00023577,2]
[321692905,1712393440464,-430.83,0.00023577,2]
[321692906,1712393440474,-484.55,0.00023577,2]
[321692907,1712393440483,-500.0,0.00023577,2]
[321692908,1712393440492,-215.27464254,0.00023577,2]
[321692912,1712393442696,-284.72535746,0.00023577,2]
[321692913,1712393442710,-264.77,0.00023577,2]
[321692914,1712393442719,-500.0,0.00023577,2]
[321692915,1712393442728,-500.0,0.00023577,2]
[321692916,1712393442738,-394.0,0.00023577,2]
[321692917,1712393442748,-390.41,0.00023577,2]
[321692918,1712393442757,-500.0,0.00023577,2]
[321692919,1712393442767,-500.0,0.00023577,2]
[321692920,1712393442776,-500.0,0.00023577,2]
[321692921,1712393442787,-500.0,0.00023577,2]
[321692922,1712393442796,-500.0,0.00023577,2]
[321692923,1712393442805,-500.0,0.00023577,2]
[321692924,1712393442814,-631.58,0.00023577,2]
[321692925,1712393442823,-306.07358998,0.00023577,2]
[321692926,1712393442836,-193.92641002,0.00023577,2]
[321692927,1712393442846,-300.0,0.00023577,2]
[321692928,1712393442855,-500.0,0.00023577,2]
[321692929,1712393442865,-500.0,0.00023577,2]
[321692930,1712393442875,-500.0,0.00023577,2]
[321692931,1712393442884,-587.9,0.00023577,2]
[321692932,1712393442894,-500.0,0.00023577,2]
[321692933,1712393442903,-243.82358998,0.00023577,2]
[321692934,1712393442927,-256.17641002,0.00023577,2]
[321692935,1712393442936,-179.88770478,0.00023577,2]
[321692940,1712393446072,-173.49240612,0.00023577,2]
[321692941,1712393446083,-543.97604768,0.00023577,2]
[321692942,1712393446092,-500.0,0.00023577,2]
[321692943,1712393446102,-500.0,0.00023577,2]
[321692944,1712393446111,-500.0,0.00023577,2]
[321692945,1712393446122,-500.0,0.00023577,2]
[321692946,1712393446132,-500.0,0.00023577,2]
[321692947,1712393446142,-542.77,0.00023577,2]
[321692948,1712393446152,-945.63,0.00023577,2]
[321692949,1712393446162,-500.0,0.00023577,2]
[321692950,1712393446172,-500.0,0.00023577,2]
[321692951,1712393446182,-500.0,0.00023577,2]
[321692952,1712393446192,-500.0,0.00023577,2]
[321692953,1712393446202,-500.0,0.00023577,2]
[321692954,1712393446212,-505.13,0.00023577,2]
[321692955,1712393446222,-500.0,0.00023577,2]
[321692956,1712393446231,-500.0,0.00023577,2]
[321692957,1712393446241,-1096.4,0.00023577,2]
[321692958,1712393446251,-45189.53751501,0.00023578,2]
[321692959,1712393451900,271.48,0.00020832,2]
[321692963,1712393697806,653.67819699,0.00021,2]
[321692964,1712393849894,1400.04656071,0.00021,2]
[321692965,1712393853604,1795.23777957,0.00021,2]
[321692968,1712394133918,-312.54704425,0.00019794,2]
[321692969,1712394133944,-210.0107731,0.00019795,2]
[321692970,1712394133970,-180.65093976,0.00019795,2]
[321692971,1712394133998,-261.54416179,0.00019796,2]
[321692972,1712394134022,-250.89815982,0.00019796,2]
[321692973,1712394134047,-199.74361967,0.00019797,2]
[321692974,1712394134073,-304.46832005,0.00019797,2]
[321692975,1712394134096,-3373.51114999,0.00019798,2]
[321692976,1712394134121,-2173.34818369,0.00019799,2]
[321692977,1712394134148,-4465.1280569,0.000198,2]
[321692978,1712394134171,-7296.19504931,0.00019803,2]
[321692979,1712394134195,-316.08,0.00019805,2]
[321692980,1712394134219,-3872.19122365,0.0002,2]
[321692981,1712394134245,-326.43277157,0.00020999,2]
[321692982,1712394134269,-3157.47697101,0.00021,2]
[321692983,1712394134294,-2000.0,0.00021,2]
[321692984,1712394134322,-291.95773855,0.00021,2]
[321692985,1712394134345,-2007.81583689,0.00021,2]
[321692986,1712394201222,-4465.1280569,0.00020999,2]
[321692987,1712394201249,-122.88974593,0.00021,2]
[321692988,1712394201276,-2411.98219717,0.00021,2]
[321692989,1712394208835,-2173.34818369,0.00020999,2]
[321692990,1712394208859,-2826.65181631,0.00021,2]
[321692991,1712394246295,-156.79881573,0.00020996,2]
[321692992,1712394246320,-295.82060124,0.00020996,2]
[321692993,1712394246345,-147.38058303,0.00020997,2]
[321692994,1712394276971,-88.69121422,0.00020997,2]
[321692995,1712394276999,-203.68325481,0.00020997,2]
[321692996,1712394277032,-682.253116,0.00020997,2]
[321692997,1712394277060,-682.253116,0.00020997,2]
[321692998,1712394277090,-23288.6970054,0.00020998,2]
[321692999,1712394277118,-54.42229357,0.00020999,2]
[321693000,1712394302037,-808.90934401,0.00020996,2]
[321693001,1712394302065,-2348.97634667,0.00020996,2]
[321693002,1712394302092,-100.57770643,0.00020999,2]
[321693003,1712394302117,-217.17711635,0.00021,2]
[321693004,1712394302143,-1950.50567056,0.00021215,2]
[321693005,1712394302167,-155.55485798,0.00021218,2]
[321693006,1712394302194,-261.54416179,0.00021501,2]
[321693007,1712394302220,-199.74361967,0.00021501,2]
[321693008,1712394302245,-210.0107731,0.00021502,2]
[321693009,1712394302274,-304.46832005,0.00021503,2]
[321693010,1712394302301,-326.43277157,0.00021503,2]
[321693011,1712394302327,-150.0,0.00021504,2]
[321693012,1712394302352,-150.0,0.00021561,2]
[321693013,1712394302378,-160.0,0.00021563,2]
[321693014,1712394302403,-500.0,0.00021582,2]
[321693015,1712394302429,-150.0,0.00021583,2]
[321693016,1712394302456,-3006.09931182,0.00021695,2]
[321693030,1712394631681,-210.0107731,0.0002,2]
[321693032,1712394631693,-317.4,0.00020001,2]
[321693033,1712394631703,-624.05493274,0.00021692,2]
[321693035,1712394631713,-155.0,0.00021692,2]
[321693036,1712394631722,-805.75434894,0.00021694,2]
[321693037,1712394631735,-1691.80627849,0.00021694,2]
[321693038,1712394631747,-2591.19455043,0.00021694,2]
[321693039,1712394631764,-615.25441392,0.00021694,2]
[321693040,1712394631780,-3801.13851225,0.00021694,2]
[321693041,1712394631792,-1008.9263289,0.00021694,2]
[321693042,1712394631804,-663.82444517,0.00021694,2]
[321693043,1712394631817,-323.0436316,0.00021694,2]
[321693044,1712394631836,-927.17313469,0.00021694,2]
[321693045,1712394631848,-1036.5673428,0.00021694,2]
[321693046,1712394631873,-2229.22085663,0.00021694,2]
[321693047,1712394631884,-9293.88877463,0.00021694,2]
[321693048,1712394631896,-609.86344662,0.00021694,2]
[321693049,1712394631916,-350.0,0.00021694,2]
[321693050,1712394631977,-9211.13041001,0.00021694,2]
[321693051,1712394631988,-618.22765951,0.00021695,2]
[321693052,1712394632038,-515.39468644,0.00021695,2]
[321693053,1712394637686,-2629.00662687,0.00021695,2]
[321693054,1712394637794,-1529.83144216,0.00021695,2]
[321693061,1712394638614,-2022.81688463,0.00021695,2]
[321693062,1712394638625,-5453.17338857,0.00021695,2]
[321693063,1712394638634,-386.04,0.00021833,2]
[321693064,1712394638644,-1000.0,0.00022,2]
[321693065,1712394638653,-640.34666034,0.00022,2]
[321693066,1712394638662,-154.25,0.00022089,2]
[321693067,1712394638671,-317.4,0.00022265,2]
[321693068,1712394638681,-872.0,0.00022457,2]
[321693069,1712394638689,-63.73415854,0.00022654,2]
[321693070,1712394638702,-848.42744379,0.00022654,2]
[321693071,1712394638711,-154.25,0.00023241,2]
[321693072,1712394638720,-251.6653012,0.00023241,2]
[321693073,1712394638729,-1000.0,0.000233,2]
[321693074,1712394638738,-150.0,0.00023314,2]
[321693075,1712394638748,-161.54266328,0.00023359,2]
[321693076,1712394638757,-767.69206179,0.00023395,2]
[321693077,1712394638766,-164.85658768,0.00023425,2]
[321693078,1712394638776,-303.72704898,0.00023458,2]
[321693079,1712394638785,-1027.51659308,0.00023476,2]
[321693080,1712394638793,-221.86498975,0.00023476,2]
[321693081,1712394638802,-369.20663556,0.00023476,2]
[321693082,1712394638812,-155.0,0.00023476,2]
[321693083,1712394638821,-206.18856688,0.00023476,2]
[321693084,1712394638830,-155.0,0.00023476,2]
[321693085,1712394638839,-4715.58862221,0.00023476,2]
[321693086,1712394638848,-263.44464263,0.00023476,2]
[321693087,1712394638857,-550.51311595,0.00023476,2]
[321693088,1712394638866,-2353.30261599,0.00023476,2]
[321693089,1712394638875,-207.17268662,0.00023476,2]
[321693090,1712394638885,-155.0,0.00023476,2]
[321693091,1712394638894,-155.0,0.00023476,2]
[321693092,1712394638903,-183.92361478,0.00023476,2]
[321693093,1712394638913,-238.17944664,0.00023476,2]
[321693094,1712394638922,-168.75422916,0.00023476,2]
[321693095,1712394638931,-296.18784511,0.00023476,2]
[321693096,1712394638940,-513.16357943,0.00023476,2]
[321693097,1712394638949,-203.93852806,0.00023476,2]
[321693098,1712394638958,-178.78136517,0.00023476,2]
[321693099,1712394638967,-218.85703448,0.00023476,2]
[321693100,1712394638976,-295.3755045,0.00023476,2]
[321693101,1712394638985,-288.4223223,0.00023476,2]
[321693102,1712394638994,-387.12858189,0.00023476,2]
[321693103,1712394639004,-300.71209768,0.00023476,2]
[321693104,1712394639013,-310.8781278,0.00023476,2]
[321693105,1712394639022,-182.48436504,0.00023476,2]